Workbook

Sheet Celkové
A2: OBLASTNÍ ZÁVOD SOUTĚŽE MALÝ TEAMGYM OPEN - rok 2017
A3: 2017-12-02
A5: Kategorie 0. - dívky
A7: Startovní číslo | B7: Družstvo | C7: Župa | D7: Akrobacie | I7: Trampolína | N7: Celkem | O7: Pořadí
D8: D | E8: E | F8: C | G8: PEN | I8: D | J8: E | K8: C | L8: PEN
A9: 4 | B9: Gym Club REDA – Papoušci | C9: KASPV | D9: 2.50 | E9: 7.80 | F9: 2.00 | H9: =D9+E9+F9-G9 -> 12.30 | I9: 2.70 | J9: 5.40 | K9: 2.00 | M9: =I9+J9+K9-L9 -> 10.10 | N9: =H9+M9 -> 22.40 | O9: =RANK(N9,N$9:N$14,0) -> 1
A10: 5 | B10: Sokol Radotín | C10: 5 | D10: 2.90 | E10: 6.60 | F10: 2.00 | H10: 11.50 | I10: 2.30 | J10: 6.10 | K10: 2.00 | M10: 10.40 | N10: 21.90 | O10: 2
A11: 6 | B11: SK GymSport Praha - Včeličky | C11: KASPV | D11: 2.80 | E11: 6.60 | F11: 2.00 | H11: 11.40 | I11: 2.00 | J11: 6.60 | K11: 1.60 | M11: 10.20 | N11: 21.60 | O11: 3
A12: 2 | B12: Sokol Řeporyje | C12: 3 | D12: 2.60 | E12: 6.40 | F12: 1.60 | H12: 10.60 | I12: 2.30 | J12: 5.65 | K12: 2.00 | M12: 9.95 | N12: 20.55 | O12: 4
A13: 7 | B13: Gym Club REDA – Cvrčci | C13: KASPV | D13: 1.60 | E13: 6.30 | F13: 1.70 | H13: 9.60 | I13: 1.60 | J13: 6.25 | K13: 2.00 | M13: 9.85 | N13: 19.45 | O13: 5
A14: 3 | B14: T. J. Sokol Praha – Hanspaulka | C14: 3 | D14: 2.10 | E14: 4.80 | F14: 2.00 | H14: 8.90 | I14: 1.90 | J14: 4.80 | K14: 2.00 | M14: 8.70 | N14: 17.60 | O14: 6
A17: Kategorie 0. - mix
A19: Startovní číslo | B19: Družstvo | C19: Župa | D19: Akrobacie | I19: Trampolína | N19: Celkem | O19: Pořadí
D20: D | E20: E | F20: C | G20: PEN | I20: D | J20: E | K20: C | L20: PEN
A21: 15 | B21: TJ Hostivice A - mix | D21: 2.00 | E21: 7.35 | F21: 2.00 | H21: =D21+E21+F21-G21 -> 11.35 | I21: 2.50 | J21: 5.70 | K21: 2.00 | M21: =I21+J21+K21-L21 -> 10.20 | N21: =H21+M21 -> 21.55 | O21: =RANK(N21,N$21:N$29,0) -> 1
A22: 1 | B22: TJ Avia Čakovice Mix | D22: 1.60 | E22: 7.05 | F22: 2.00 | H22: 10.65 | I22: 2.00 | J22: 6.75 | K22: 2.00 | M22: 10.75 | N22: 21.40 | O22: 2
A23: 12 | B23: TJ Hostivice B - mix | D23: 1.60 | E23: 6.65 | F23: 2.00 | H23: 10.25 | I23: 1.60 | J23: 6.40 | K23: 2.00 | M23: 10.00 | N23: 20.25 | O23: 3
A24: 10 | B24: Sokol Hlubočepy - mix | C24: 3 | D24: 1.80 | E24: 5.70 | F24: 2.00 | H24: 9.50 | I24: 1.70 | J24: 6.45 | K24: 1.70 | M24: 9.85 | N24: 19.35 | O24: 4
A25: 9 | B25: Sokol Vinohrady – mix | C25: 1 | D25: 1.10 | E25: 6.60 | F25: 2.00 | H25: 9.70 | I25: 1.50 | J25: 5.85 | K25: 2.00 | M25: 9.35 | N25: 19.05 | O25: 5
A26: 14 | B26: Sokol Vyšehrad A - mix | C26: 3 | D26: 1.60 | E26: 5.40 | F26: 1.80 | H26: 8.80 | I26: 1.60 | J26: 5.55 | K26: 2.00 | M26: 9.15 | N26: 17.95 | O26: 6
A27: 11 | B27: Sokol Praha Vršovice - mix | C27: 1 | D27: 1.60 | E27: 5.10 | F27: 1.90 | H27: 8.60 | I27: 1.50 | J27: 5.55 | K27: 2.00 | M27: 9.05 | N27: 17.65 | O27: 7
A28: 13 | B28: SK GymSport Praha - mix | C28: KASPV | D28: 1.40 | E28: 4.75 | F28: 1.70 | H28: 7.85 | I28: 1.50 | J28: 5.60 | K28: 2.00 | M28: 9.10 | N28: 16.95 | O28: 8
A29: 8 | B29: Sokol Vyšehrad B - mix | C29: 5 | D29: 1.40 | E29: 4.70 | F29: 2.00 | H29: 8.10 | I29: 1.40 | J29: 3.20 | K29: 2.00 | M29: 6.60 | N29: 14.70 | O29: 9
A33: Kategorie I. - dívky
A35: Startovní číslo | B35: Družstvo | C35: Župa | D35: Akrobacie | I35: Trampolína | N35: Celkem | O35: Pořadí
D36: D | E36: E | F36: C | G36: PEN | I36: D | J36: E | K36: C | L36: PEN
A37: 23 | B37: Gym Club REDA – Koťátka | C37: KASPV | D37: 3.20 | E37: 7.10 | F37: 2.00 | H37: =D37+E37+F37-G37 -> 12.30 | I37: 2.80 | J37: 5.73 | K37: 2.00 | M37: =I37+J37+K37-L37 -> 10.53 | N37: =H37+M37 -> 22.83 | O37: =RANK(N37,N$37:N$43,0) -> 1
A38: 21 | B38: SK GymSport Praha Berušky | C38: KASPV | D38: 3.10 | E38: 6.60 | F38: 2.00 | H38: 11.70 | I38: 2.70 | J38: 5.50 | K38: 2.00 | M38: 10.20 | N38: 21.90 | O38: 2
A39: 22 | B39: Sokol Radotín A | C39: 5 | D39: 2.60 | E39: 6.70 | F39: 2.00 | H39: 11.30 | I39: 2.40 | J39: 5.86 | K39: 1.80 | M39: 10.06 | N39: 21.36 | O39: 3
A40: 24 | B40: SK GymSport Praha - Včeličky | C40: KASPV | D40: 2.40 | E40: 6.80 | F40: 2.00 | H40: 11.20 | I40: 2.10 | J40: 5.83 | K40: 1.90 | M40: 9.83 | N40: 21.03 | O40: 4
A41: 20 | B41: Gym Club REDA – Kočičky | C41: KASPV | D41: 2.00 | E41: 7.15 | F41: 1.80 | H41: 10.95 | I41: 1.70 | J41: 6.20 | K41: 2.00 | M41: 9.90 | N41: 20.85 | O41: 5
A42: 17 | B42: T. J. Sokol Praha – Hanspaulka | C42: 3 | D42: 2.30 | E42: 5.15 | F42: 2.00 | H42: 9.45 | I42: 1.90 | J42: 6.33 | K42: 2.00 | M42: 10.23 | N42: 19.68 | O42: 6
A43: 18 | B43: Sokol Hlubočepy – Dívky | C43: 3 | D43: 1.70 | E43: 5.45 | F43: 1.40 | H43: 8.55 | I43: 1.70 | J43: 5.93 | K43: 1.80 | M43: 9.43 | N43: 17.98 | O43: 7
A46: Kategorie I. - mix
A48: Startovní číslo | B48: Družstvo | C48: Župa | D48: Akrobacie | I48: Trampolína | N48: Celkem | O48: Pořadí
D49: D | E49: E | F49: C | G49: PEN | I49: D | J49: E | K49: C | L49: PEN
A50: 28 | B50: TJ Hostivice - mix | D50: 3.80 | E50: 6.45 | F50: 2.00 | H50: =D50+E50+F50-G50 -> 12.25 | I50: 2.60 | J50: 6.63 | K50: 1.90 | M50: =I50+J50+K50-L50 -> 11.13 | N50: =H50+M50 -> 23.38 | O50: =RANK(N50,N$50:N$53,0) -> 1
A51: 26 | B51: Sokol Hlubočepy - mix | C51: 3 | D51: 2.60 | E51: 5.85 | F51: 1.70 | H51: =D51+E51+F51-G51 -> 10.15 | I51: 2.60 | J51: 6.66 | K51: 2.00 | M51: =I51+J51+K51-L51 -> 11.26 | N51: =H51+M51 -> 21.41 | O51: =RANK(N51,N$50:N$53,0) -> 2
A52: 25 | B52: TJ Avia Čakovice - mix | D52: 2.40 | E52: 6.00 | F52: 1.60 | H52: =D52+E52+F52-G52 -> 10.00 | I52: 2.40 | J52: 6.90 | K52: 2.00 | M52: =I52+J52+K52-L52 -> 11.30 | N52: =H52+M52 -> 21.30 | O52: =RANK(N52,N$50:N$53,0) -> 3
A53: 27 | B53: Sokol Praha Vršovice - mix | C53: 1 | D53: 1.80 | E53: 6.15 | F53: 1.80 | H53: =D53+E53+F53-G53 -> 9.75 | I53: 2.00 | J53: 6.30 | K53: 2.00 | M53: =I53+J53+K53-L53 -> 10.30 | N53: =H53+M53 -> 20.05 | O53: =RANK(N53,N$50:N$53,0) -> 4
A57: Kategorie II.
A59: Startovní číslo | B59: Družstvo | C59: Župa | D59: Akrobacie | I59: Trampolína | N59: Celkem | O59: Pořadí
D60: D | E60: E | F60: C | G60: PEN | I60: D | J60: E | K60: C | L60: PEN
A61: 33 | B61: SK GymSport Praha - Berušky | C61: KASPV | D61: 3.30 | E61: 6.87 | F61: 2.00 | H61: =D61+E61+F61-G61 -> 12.17 | I61: 2.40 | J61: 7.53 | K61: 2.00 | M61: =I61+J61+K61-L61 -> 11.93 | N61: =H61+M61 -> 24.10 | O61: =RANK(N61,N$61:N$65,0) -> 1
A62: 31 | B62: TJ Hostivice - mix | D62: 2.70 | E62: 6.30 | F62: 2.00 | H62: =D62+E62+F62-G62 -> 11.00 | I62: 2.40 | J62: 7.20 | K62: 2.00 | M62: =I62+J62+K62-L62 -> 11.60 | N62: =H62+M62 -> 22.60 | O62: =RANK(N62,N$61:N$65,0) -> 2
A63: 30 | B63: Sokol Radotín - mix | C63: 5 | D63: 3.00 | E63: 5.93 | F63: 1.70 | H63: =D63+E63+F63-G63 -> 10.63 | I63: 2.40 | J63: 7.06 | K63: 2.00 | M63: =I63+J63+K63-L63 -> 11.46 | N63: =H63+M63 -> 22.09 | O63: =RANK(N63,N$61:N$65,0) -> 3
A64: 29 | B64: Sokol Vyšehrad - mix | C64: 5 | D64: 1.60 | E64: 6.53 | F64: 1.80 | H64: =D64+E64+F64-G64 -> 9.93 | I64: 2.40 | J64: 4.60 | K64: 2.00 | M64: =I64+J64+K64-L64 -> 9.00 | N64: =H64+M64 -> 18.93 | O64: =RANK(N64,N$61:N$65,0) -> 4
A65: 32 | B65: Sokol Vinohrady | C65: 1 | D65: 1.60 | E65: 4.33 | F65: 1.80 | H65: =D65+E65+F65-G65 -> 7.73 | I65: 1.00 | J65: 5.90 | K65: 2.00 | M65: =I65+J65+K65-L65 -> 8.90 | N65: =H65+M65 -> 16.63 | O65: =RANK(N65,N$61:N$65,0) -> 5
A69: Kategorie III.
A71: Startovní číslo | B71: Družstvo | C71: Župa | D71: Akrobacie | I71: Trampolína | N71: Celkem | O71: Pořadí
D72: D | E72: E | F72: C | G72: PEN | I72: D | J72: E | K72: C | L72: PEN
A73: 34 | B73: Sokol Radotín | C73: 5 | D73: 2.00 | E73: 6.40 | F73: 1.90 | H73: =D73+E73+F73-G73 -> 10.30 | I73: 2.40 | J73: 6.75 | K73: 2.00 | M73: =I73+J73+K73-L73 -> 11.15 | N73: =H73+M73 -> 21.45 | O73: =RANK(N73,N73,0) -> 1

Sheet Kat.0
A2: OBLASTNÍ ZÁVOD SOUTĚŽE MALÝ TEAMGYM OPEN - rok 2017
A3: 2017-12-02
A5: Kategorie 0. - dívky
A7: Startovní číslo | B7: Družstvo | C7: Župa | D7: Akrobacie | I7: Trampolína | N7: Celkem | O7: Pořadí
D8: D | E8: E | F8: C | G8: PEN | I8: D | J8: E | K8: C | L8: PEN
A9: 4 | B9: Gym Club REDA – Papoušci | C9: KASPV | D9: 2.50 | E9: 7.80 | F9: 2.00 | H9: =D9+E9+F9-G9 -> 12.30 | I9: 2.70 | J9: 5.40 | K9: 2.00 | M9: =I9+J9+K9-L9 -> 10.10 | N9: =H9+M9 -> 22.40 | O9: =RANK(N9,N$9:N$14,0) -> 1
A10: 5 | B10: Sokol Radotín | C10: 5 | D10: 2.90 | E10: 6.60 | F10: 2.00 | H10: 11.50 | I10: 2.30 | J10: 6.10 | K10: 2.00 | M10: 10.40 | N10: 21.90 | O10: 2
A11: 6 | B11: SK GymSport Praha - Včeličky | C11: KASPV | D11: 2.80 | E11: 6.60 | F11: 2.00 | H11: 11.40 | I11: 2.00 | J11: 6.60 | K11: 1.60 | M11: 10.20 | N11: 21.60 | O11: 3
A12: 2 | B12: Sokol Řeporyje | C12: 3 | D12: 2.60 | E12: 6.40 | F12: 1.60 | H12: 10.60 | I12: 2.30 | J12: 5.65 | K12: 2.00 | M12: 9.95 | N12: 20.55 | O12: 4
A13: 7 | B13: Gym Club REDA – Cvrčci | C13: KASPV | D13: 1.60 | E13: 6.30 | F13: 1.70 | H13: 9.60 | I13: 1.60 | J13: 6.25 | K13: 2.00 | M13: 9.85 | N13: 19.45 | O13: 5
A14: 3 | B14: T. J. Sokol Praha – Hanspaulka | C14: 3 | D14: 2.10 | E14: 4.80 | F14: 2.00 | H14: 8.90 | I14: 1.90 | J14: 4.80 | K14: 2.00 | M14: 8.70 | N14: 17.60 | O14: 6
A17: Kategorie 0. - Mix
A19: Startovní číslo | B19: Družstvo | C19: Župa | D19: Akrobacie | I19: Trampolína | N19: Celkem | O19: Pořadí
D20: D | E20: E | F20: C | G20: PEN | I20: D | J20: E | K20: C | L20: PEN
A21: 15 | B21: TJ Hostivice A - mix | D21: 2.00 | E21: 7.35 | F21: 2.00 | H21: =D21+E21+F21-G21 -> 11.35 | I21: 2.50 | J21: 5.70 | K21: 2.00 | M21: =I21+J21+K21-L21 -> 10.20 | N21: =H21+M21 -> 21.55 | O21: =RANK(N21,N$21:N$29,0) -> 1
A22: 1 | B22: TJ Avia Čakovice Mix | D22: 1.60 | E22: 7.05 | F22: 2.00 | H22: 10.65 | I22: 2.00 | J22: 6.75 | K22: 2.00 | M22: 10.75 | N22: 21.40 | O22: 2
A23: 12 | B23: TJ Hostivice B - mix | D23: 1.60 | E23: 6.65 | F23: 2.00 | H23: 10.25 | I23: 1.60 | J23: 6.40 | K23: 2.00 | M23: 10.00 | N23: 20.25 | O23: 3
A24: 10 | B24: Sokol Hlubočepy - mix | C24: 3 | D24: 1.80 | E24: 5.70 | F24: 2.00 | H24: 9.50 | I24: 1.70 | J24: 6.45 | K24: 1.70 | M24: 9.85 | N24: 19.35 | O24: 4
A25: 9 | B25: Sokol Vinohrady – mix | C25: 1 | D25: 1.10 | E25: 6.60 | F25: 2.00 | H25: 9.70 | I25: 1.50 | J25: 5.85 | K25: 2.00 | M25: 9.35 | N25: 19.05 | O25: 5
A26: 14 | B26: Sokol Vyšehrad A - mix | C26: 3 | D26: 1.60 | E26: 5.40 | F26: 1.80 | H26: 8.80 | I26: 1.60 | J26: 5.55 | K26: 2.00 | M26: 9.15 | N26: 17.95 | O26: 6
A27: 11 | B27: Sokol Praha Vršovice - mix | C27: 1 | D27: 1.60 | E27: 5.10 | F27: 1.90 | H27: 8.60 | I27: 1.50 | J27: 5.55 | K27: 2.00 | M27: 9.05 | N27: 17.65 | O27: 7
A28: 13 | B28: SK GymSport Praha - mix | C28: KASPV | D28: 1.40 | E28: 4.75 | F28: 1.70 | H28: 7.85 | I28: 1.50 | J28: 5.60 | K28: 2.00 | M28: 9.10 | N28: 16.95 | O28: 8
A29: 8 | B29: Sokol Vyšehrad B - mix | C29: 5 | D29: 1.40 | E29: 4.70 | F29: 2.00 | H29: 8.10 | I29: 1.40 | J29: 3.20 | K29: 2.00 | M29: 6.60 | N29: 14.70 | O29: 9

Sheet Kat.I
A2: OBLASTNÍ ZÁVOD SOUTĚŽE MALÝ TEAMGYM OPEN - rok 2017
A3: 2017-12-02
A5: Kategorie I. - dívky
A7: Startovní číslo | B7: Družstvo | C7: Župa | D7: Akrobacie | I7: Trampolína | N7: Celkem | O7: Pořadí
D8: D | E8: E | F8: C | G8: PEN | I8: D | J8: E | K8: C | L8: PEN
A9: 23 | B9: Gym Club REDA – Koťátka | C9: KASPV | D9: 3.20 | E9: 7.10 | F9: 2.00 | H9: =D9+E9+F9-G9 -> 12.30 | I9: 2.80 | J9: 5.73 | K9: 2.00 | M9: =I9+J9+K9-L9 -> 10.53 | N9: =H9+M9 -> 22.83 | O9: =RANK(N9,N$9:N$15,0) -> 1
A10: 21 | B10: SK GymSport Praha Berušky | C10: KASPV | D10: 3.10 | E10: 6.60 | F10: 2.00 | H10: 11.70 | I10: 2.70 | J10: 5.50 | K10: 2.00 | M10: 10.20 | N10: 21.90 | O10: 2
A11: 22 | B11: Sokol Radotín A | C11: 5 | D11: 2.60 | E11: 6.70 | F11: 2.00 | H11: 11.30 | I11: 2.40 | J11: 5.86 | K11: 1.80 | M11: 10.06 | N11: 21.36 | O11: 3
A12: 24 | B12: SK GymSport Praha - Včeličky | C12: KASPV | D12: 2.40 | E12: 6.80 | F12: 2.00 | H12: 11.20 | I12: 2.10 | J12: 5.83 | K12: 1.90 | M12: 9.83 | N12: 21.03 | O12: 4
A13: 20 | B13: Gym Club REDA – Kočičky | C13: KASPV | D13: 2.00 | E13: 7.15 | F13: 1.80 | H13: 10.95 | I13: 1.70 | J13: 6.20 | K13: 2.00 | M13: 9.90 | N13: 20.85 | O13: 5
A14: 17 | B14: T. J. Sokol Praha – Hanspaulka | C14: 3 | D14: 2.30 | E14: 5.15 | F14: 2.00 | H14: 9.45 | I14: 1.90 | J14: 6.33 | K14: 2.00 | M14: 10.23 | N14: 19.68 | O14: 6
A15: 18 | B15: Sokol Hlubočepy – Dívky | C15: 3 | D15: 1.70 | E15: 5.45 | F15: 1.40 | H15: 8.55 | I15: 1.70 | J15: 5.93 | K15: 1.80 | M15: 9.43 | N15: 17.98 | O15: 7
A18: Kategorie I. - dívky
A20: Startovní číslo | B20: Družstvo | C20: Župa | D20: Akrobacie | I20: Trampolína | N20: Celkem | O20: Pořadí
D21: D | E21: E | F21: C | G21: PEN | I21: D | J21: E | K21: C | L21: PEN
A22: 28 | B22: TJ Hostivice - mix | D22: 3.80 | E22: 6.45 | F22: 2.00 | H22: =D22+E22+F22-G22 -> 12.25 | I22: 2.60 | J22: 6.63 | K22: 1.90 | M22: =I22+J22+K22-L22 -> 11.13 | N22: =H22+M22 -> 23.38 | O22: =RANK(N22,N$22:N$25,0) -> 1
A23: 26 | B23: Sokol Hlubočepy - mix | C23: 3 | D23: 2.60 | E23: 5.85 | F23: 1.70 | H23: =D23+E23+F23-G23 -> 10.15 | I23: 2.60 | J23: 6.66 | K23: 2.00 | M23: =I23+J23+K23-L23 -> 11.26 | N23: =H23+M23 -> 21.41 | O23: =RANK(N23,N$22:N$25,0) -> 2
A24: 25 | B24: TJ Avia Čakovice - mix | D24: 2.40 | E24: 6.00 | F24: 1.60 | H24: =D24+E24+F24-G24 -> 10.00 | I24: 2.40 | J24: 6.90 | K24: 2.00 | M24: =I24+J24+K24-L24 -> 11.30 | N24: =H24+M24 -> 21.30 | O24: =RANK(N24,N$22:N$25,0) -> 3
A25: 27 | B25: Sokol Praha Vršovice - mix | C25: 1 | D25: 1.80 | E25: 6.15 | F25: 1.80 | H25: =D25+E25+F25-G25 -> 9.75 | I25: 2.00 | J25: 6.30 | K25: 2.00 | M25: =I25+J25+K25-L25 -> 10.30 | N25: =H25+M25 -> 20.05 | O25: =RANK(N25,N$22:N$25,0) -> 4

Sheet Kat.II
A2: OBLASTNÍ ZÁVOD SOUTĚŽE MALÝ TEAMGYM OPEN - rok 2017
A3: 2017-12-02
A5: Kategorie II.
A7: Startovní číslo | B7: Družstvo | C7: Župa | D7: Akrobacie | I7: Trampolína | N7: Celkem | O7: Pořadí
D8: D | E8: E | F8: C | G8: PEN | I8: D | J8: E | K8: C | L8: PEN
A9: 33 | B9: SK GymSport Praha - Berušky | C9: KASPV | D9: 3.30 | E9: 6.87 | F9: 2.00 | H9: =D9+E9+F9-G9 -> 12.17 | I9: 2.40 | J9: 7.53 | K9: 2.00 | M9: =I9+J9+K9-L9 -> 11.93 | N9: =H9+M9 -> 24.10 | O9: =RANK(N9,N$9:N$13,0) -> 1
A10: 31 | B10: TJ Hostivice - mix | D10: 2.70 | E10: 6.30 | F10: 2.00 | H10: =D10+E10+F10-G10 -> 11.00 | I10: 2.40 | J10: 7.20 | K10: 2.00 | M10: =I10+J10+K10-L10 -> 11.60 | N10: =H10+M10 -> 22.60 | O10: =RANK(N10,N$9:N$13,0) -> 2
A11: 30 | B11: Sokol Radotín - mix | C11: 5 | D11: 3.00 | E11: 5.93 | F11: 1.70 | H11: =D11+E11+F11-G11 -> 10.63 | I11: 2.40 | J11: 7.06 | K11: 2.00 | M11: =I11+J11+K11-L11 -> 11.46 | N11: =H11+M11 -> 22.09 | O11: =RANK(N11,N$9:N$13,0) -> 3
A12: 29 | B12: Sokol Vyšehrad - mix | C12: 5 | D12: 1.60 | E12: 6.53 | F12: 1.80 | H12: =D12+E12+F12-G12 -> 9.93 | I12: 2.40 | J12: 4.60 | K12: 2.00 | M12: =I12+J12+K12-L12 -> 9.00 | N12: =H12+M12 -> 18.93 | O12: =RANK(N12,N$9:N$13,0) -> 4
A13: 32 | B13: Sokol Vinohrady | C13: 1 | D13: 1.60 | E13: 4.33 | F13: 1.80 | H13: =D13+E13+F13-G13 -> 7.73 | I13: 1.00 | J13: 5.90 | K13: 2.00 | M13: =I13+J13+K13-L13 -> 8.90 | N13: =H13+M13 -> 16.63 | O13: =RANK(N13,N$9:N$13,0) -> 5

Sheet Kat.III
A2: OBLASTNÍ ZÁVOD SOUTĚŽE MALÝ TEAMGYM OPEN - rok 2017
A3: 2017-12-02
A5: Kategorie III.
A7: Startovní číslo | B7: Družstvo | C7: Župa | D7: Akrobacie | I7: Trampolína | N7: Celkem | O7: Pořadí
D8: D | E8: E | F8: C | G8: PEN | I8: D | J8: E | K8: C | L8: PEN
A9: 34 | B9: Sokol Radotín | C9: 5 | D9: 2.00 | E9: 6.40 | F9: 1.90 | H9: =D9+E9+F9-G9 -> 10.30 | I9: 2.40 | J9: 6.75 | K9: 2.00 | M9: =I9+J9+K9-L9 -> 11.15 | N9: =H9+M9 -> 21.45 | O9: =RANK(N9,N9,0) -> 1
